bitfinex/quotes_BTCUSD_20250211
["timestamp","ask_amount","ask_price","bid_price","bid_amount"]
[1739258843717,0.0001066,98532.0,98531.0,0.74317084]
[1739258844110,0.0001066,98532.0,98531.0,0.74417084]
[1739258844309,0.0001066,98532.0,98531.0,0.74317084]
[1739258844653,0.0011066,98532.0,98531.0,0.75217084]
[1739258845258,0.0001066,98532.0,98531.0,0.74317084]
[1739258845657,0.0001066,98532.0,98531.0,0.74717084]
[1739258846448,0.0001066,98532.0,98531.0,0.74317084]
[1739258846655,0.0011066,98532.0,98531.0,0.75317084]
[1739258846973,0.0011066,98532.0,98531.0,0.75817084]
[1739258862090,0.12625758,98553.0,98532.0,0.023]
[1739258862239,0.12625758,98553.0,98537.0,0.152226]
[1739258862442,0.12625758,98553.0,98538.0,0.10250365]
[1739258863430,0.13325758,98553.0,98538.0,0.10250365]
[1739258863605,0.13325758,98553.0,98539.0,0.00761605]
[1739258863837,0.12825758,98553.0,98540.0,0.10250365]
[1739258864162,0.12825758,98553.0,98541.0,0.04774803]
[1739258864163,0.13325758,98553.0,98541.0,0.04774803]
[1739258864365,0.13325758,98553.0,98542.0,0.10250365]
[1739258864693,0.13125758,98553.0,98542.0,0.10250365]
[1739258864950,0.13325758,98553.0,98542.0,0.10250365]
[1739258865151,0.13325758,98553.0,98543.0,0.00761605]
[1739258865371,0.12825758,98553.0,98544.0,0.10250365]
[1739258865692,0.13325758,98553.0,98544.0,0.13871945]
[1739258866042,0.12925758,98553.0,98545.0,0.00950257]
[1739258866245,0.12625758,98553.0,98546.0,0.10250365]
[1739258866442,0.13025758,98553.0,98546.0,0.10250365]
[1739258866853,0.13125758,98553.0,98546.0,0.10250365]
[1739258867194,0.12725758,98553.0,98546.0,0.1101197]
[1739258867336,0.13125758,98553.0,98546.0,0.1263382]
[1739258867803,0.152206,98551.0,98547.0,0.00950257]
[1739258868011,0.0751,98550.0,98547.0,0.03990367]
[1739258869746,0.0751,98550.0,98548.0,0.00950257]
[1739258869971,0.0751,98550.0,98548.0,0.03990367]
[1739258870418,0.0771,98550.0,98548.0,0.03990367]
[1739258870811,0.0751,98550.0,98548.0,0.03990367]
[1739258871053,0.0751,98550.0,98548.0,0.0304011]
[1739258871278,0.0771,98550.0,98548.0,0.0304011]
[1739258872036,0.0771,98550.0,98549.0,0.0304011]
[1739258872909,0.0751,98550.0,98549.0,0.0304011]
[1739258873294,0.0771,98550.0,98549.0,0.0304011]
[1739258873555,0.0781,98550.0,98549.0,0.0304011]
[1739258876077,0.230307,98550.0,98549.0,0.0304011]
[1739258878513,0.003,98550.0,98549.0,0.0304011]
[1739258879887,0.155207,98550.0,98549.0,0.0304011]
[1739258880963,0.003,98550.0,98549.0,0.0304011]
[1739258881280,0.155207,98550.0,98549.0,0.0304011]
[1739258882254,0.003,98550.0,98549.0,0.0304011]
[1739258882454,0.155207,98550.0,98549.0,0.0304011]
[1739258882657,0.15969439,98550.0,98549.0,0.0304011]
[1739258884521,0.00748739,98550.0,98549.0,0.0304011]
[1739258888027,0.00748739,98550.0,98549.0,0.0305077]
[1739258890925,0.003,98550.0,98549.0,0.0305077]
[1739258899425,0.155207,98550.0,98549.0,0.0305077]
[1739258915023,0.003,98550.0,98549.0,0.0305077]
[1739258919301,0.155207,98550.0,98549.0,0.0305077]
[1739258927929,0.155207,98550.0,98549.0,0.0001066]
[1739258931446,0.14977017,98550.0,98549.0,0.0001066]
[1739258937104,0.15221,98548.0,98542.0,0.0001066]
[1739258937309,0.152217,98543.0,98542.0,0.0001066]
[1739258938815,0.152217,98543.0,98542.0,0.0011066]
[1739258939778,0.152217,98543.0,98542.0,0.0041066]
[1739258939983,0.152217,98543.0,98542.0,0.0031066]
[1739258940229,0.152217,98543.0,98542.0,0.0001066]
[1739258940653,0.202954,98545.0,98535.0,0.152229]
[1739258940786,0.001,98543.0,98536.0,0.19035427]
[1739258940989,0.152219,98542.0,98536.0,0.19035427]
[1739258941188,0.152219,98542.0,98536.0,0.10250365]
[1739258941819,0.152219,98542.0,98537.0,0.0076039]
[1739258941998,0.152219,98542.0,98537.0,0.11010755]
[1739258942844,0.152217,98544.0,98537.0,0.11010755]
[1739258943990,0.152218,98543.0,98538.0,0.0076039]
[1739258944195,0.001,98544.0,98538.0,0.0076039]
[1739258944428,0.152219,98542.0,98538.0,0.0076039]
[1739258945122,0.152218,98543.0,98538.0,0.0076039]
[1739258945326,0.002,98544.0,98543.0,0.152217]
[1739258945487,0.002,98544.0,98543.0,0.10250365]
[1739258945687,0.001,98544.0,98543.0,0.10250365]
[1739258946235,0.001,98544.0,98543.0,0.25472065]
[1739258946742,0.00085732,98549.0,98543.0,0.14949714]
[1739258946893,0.001,98544.0,98543.0,0.14949714]
[1739258947091,0.001,98544.0,98543.0,0.15710104]
[1739258947291,0.001,98544.0,98543.0,0.11010755]
[1739258947699,0.00085732,98549.0,98543.0,0.11010755]
[1739258948102,0.001,98544.0,98543.0,0.11010755]
[1739258948307,0.001,98544.0,98543.0,0.10250365]
[1739258949083,0.001,98544.0,98543.0,0.25472065]
[1739258949242,0.001,98544.0,98543.0,0.44438602]
[1739258949662,0.00085732,98549.0,98543.0,0.29216902]
[1739258950003,0.00685732,98549.0,98547.0,0.15221]
[1739258950209,0.00685732,98549.0,98548.0,0.10250365]
[1739258950413,0.00285732,98549.0,98548.0,0.10250365]
[1739258950793,0.00085732,98549.0,98548.0,0.10250365]
[1739258951968,0.00085732,98549.0,98548.0,0.10350365]
[1739258952100,0.00022387,98553.0,98548.0,0.10350365]
[1739258952299,0.00085732,98552.0,98548.0,0.10350365]
[1739258953297,0.00085732,98552.0,98549.0,0.06266663]
[1739258953498,0.00085732,98552.0,98550.0,0.10250365]
[1739258953900,0.00185732,98552.0,98550.0,0.10250365]
[1739258954555,0.00285732,98552.0,98550.0,0.10250365]
[1739258954868,0.00185732,98552.0,98550.0,0.10250365]
[1739258955062,0.00285732,98552.0,98550.0,0.10250365]
[1739258955873,0.00285732,98552.0,98542.0,0.3202066]
[1739258956210,0.152205,98551.0,98543.0,0.10250365]
[1739258956590,0.20579632,98552.0,98543.0,0.10250365]
[1739258956987,0.152205,98551.0,98543.0,0.10250365]
[1739258957212,0.15665037,98551.0,98543.0,0.10250365]
[1739258958306,0.15965037,98551.0,98543.0,0.10250365]
[1739258958530,0.00744537,98551.0,98546.0,0.152212]
[1739258958736,0.00744537,98551.0,98547.0,0.10250365]
[1739258958942,0.003,98551.0,98547.0,0.10250365]
[1739258959521,0.001,98551.0,98547.0,0.10250365]
[1739258960180,0.00444534,98550.0,98547.0,0.10250365]
[1739258961995,0.00644534,98550.0,98547.0,0.10250365]
[1739258962406,0.00644534,98550.0,98547.0,0.15999667]
[1739258962788,0.003,98550.0,98547.0,0.15999667]
[1739258963473,0.00444527,98549.0,98547.0,0.15999667]
[1739258963849,0.00444527,98549.0,98547.0,0.10250365]
[1739258964602,0.00544527,98549.0,98547.0,0.10250365]
[1739258966013,0.00644527,98549.0,98547.0,0.10250365]
[1739258967280,0.00085732,98548.0,98547.0,0.10250365]
[1739258967444,0.00530252,98548.0,98547.0,0.10250365]
[1739258969205,0.00085732,98548.0,98547.0,0.10250365]
[1739258969395,0.00185732,98548.0,98547.0,0.10250365]
[1739258969555,0.00630256,98548.0,98547.0,0.10250365]
[1739258969734,0.00185732,98548.0,98547.0,0.10250365]
[1739258969933,0.00630254,98548.0,98547.0,0.10250365]
[1739258970145,0.00185732,98548.0,98547.0,0.10250365]
[1739258970362,0.00630658,98548.0,98547.0,0.10250365]
[1739258970575,0.00185732,98548.0,98547.0,0.10250365]
[1739258970774,0.00630657,98548.0,98547.0,0.10250365]
[1739258970996,0.00185732,98548.0,98547.0,0.10250365]
[1739258971193,0.00630667,98548.0,98547.0,0.10250365]
[1739258971404,0.00185732,98548.0,98547.0,0.10250365]
[1739258971615,0.00630665,98548.0,98547.0,0.10250365]
[1739258971817,0.00185732,98548.0,98547.0,0.10250365]
[1739258972011,0.00630662,98548.0,98547.0,0.10250365]
[1739258972214,0.00185732,98548.0,98547.0,0.10250365]
[1739258972635,0.00630657,98548.0,98547.0,0.10250365]
[1739258972987,0.00630655,98548.0,98547.0,0.10250365]
[1739258973505,0.00185732,98548.0,98547.0,0.10250365]
[1739258974173,0.00630655,98548.0,98547.0,0.10250365]
[1739258974354,0.00185732,98548.0,98547.0,0.10250365]
[1739258974589,0.00630655,98548.0,98547.0,0.10250365]
[1739258974810,0.00185732,98548.0,98547.0,0.10250365]
[1739258974961,0.00630655,98548.0,98547.0,0.10250365]
[1739258975170,0.00185732,98548.0,98547.0,0.10250365]
[1739258975382,0.00630657,98548.0,98547.0,0.10240365]
[1739258977895,0.00185732,98548.0,98547.0,0.10240365]
[1739258979318,0.00185732,98548.0,98542.0,0.3202066]
[1739258979546,0.03760253,98548.0,98542.0,0.3202066]
[1739258979750,0.00185732,98548.0,98542.0,0.3202066]
[1739258979954,0.152216,98544.0,98542.0,0.3202066]
[1739258980350,0.152216,98544.0,98533.0,0.1523396]
[1739258980569,0.152216,98544.0,98534.0,0.10250365]
[1739258980772,0.202948,98547.0,98534.0,0.25473465]
[1739258980986,0.152215,98545.0,98534.0,0.10250365]
[1739258981191,0.152215,98545.0,98542.0,0.002]
[1739258982140,0.152215,98545.0,98542.0,0.003]
[1739258982554,0.00085732,98544.0,98542.0,0.002]
[1739258983130,0.00085732,98544.0,98535.0,0.00760682]
[1739258983332,0.00085732,98544.0,98536.0,0.10250365]
[1739258983540,0.00085732,98544.0,98543.0,0.00760682]
[1739258984824,0.00085732,98544.0,98543.0,0.11011047]
[1739258985048,0.00085732,98544.0,98543.0,0.11111047]
[1739258988066,0.00085732,98544.0,98543.0,0.11011047]
[1739258988409,0.00085732,98544.0,98543.0,0.26232747]
[1739258988907,0.00085732,98544.0,98543.0,0.11011047]
[1739258993346,0.01990186,98544.0,98543.0,0.11011047]
[1739258994115,0.01990186,98544.0,98543.0,0.10250365]
[1739258994538,0.00085732,98544.0,98543.0,0.10250365]
[1739258995789,0.00085732,98544.0,98543.0,0.10261025]
[1739258996266,0.00385732,98544.0,98543.0,0.10261025]
[1739258996477,0.00485732,98544.0,98543.0,0.10261025]
[1739258997267,0.01990248,98544.0,98543.0,0.10261025]
[1739258997473,0.02204516,98544.0,98543.0,0.10175293]
[1739258997684,0.02304516,98544.0,98543.0,0.10175293]
[1739258998095,0.02304516,98544.0,98543.0,0.0001066]
[1739258998474,0.004,98544.0,98543.0,0.0001066]
[1739258999140,0.004,98544.0,98543.0,0.00771407]
[1739259004129,0.156216,98544.0,98543.0,0.00771407]
[1739259004549,0.004,98544.0,98543.0,0.00771407]
[1739259006170,0.004,98544.0,98543.0,0.00671407]
[1739259009127,0.004,98544.0,98543.0,0.00682067]
[1739259009274,0.00422387,98544.0,98543.0,0.00682067]
[1739259024764,0.00022387,98544.0,98543.0,0.00682067]
[1739259025008,0.00122387,98544.0,98543.0,0.00682067]
[1739259025455,0.00322387,98544.0,98543.0,0.00682067]
[1739259039073,0.00798714,98544.0,98543.0,0.00682067]
[1739259039299,0.00322387,98544.0,98543.0,0.00682067]
[1739259039499,0.00798771,98544.0,98543.0,0.00682067]
[1739259041844,0.16020371,98544.0,98543.0,0.00682067]
[1739259042983,0.00798771,98544.0,98543.0,0.00682067]
[1739259056018,0.16020371,98544.0,98543.0,0.00682067]
[1739259056323,0.23560371,98544.0,98543.0,0.00682067]
[1739259058489,0.23560371,98544.0,98543.0,0.0001066]
[1739259060879,0.00259918,98543.0,98533.0,0.0001066]
[1739259061116,0.152227,98537.0,98535.0,0.023]
[1739259061323,0.00466897,98536.0,98535.0,0.12550365]
[1739259062967,0.15689697,98536.0,98535.0,0.12550365]
[1739259063294,0.00466897,98536.0,98535.0,0.12650365]
[1739259063466,0.15689697,98536.0,98535.0,0.12650365]
[1739259064478,0.15689697,98536.0,98535.0,0.13050365]
[1739259065626,0.15689697,98536.0,98535.0,0.12950365]
[1739259065827,0.15789697,98536.0,98535.0,0.12550365]
[1739259066176,0.15789697,98536.0,98535.0,0.12850365]
[1739259066377,0.15889697,98536.0,98535.0,0.12850365]
[1739259066634,0.15889697,98536.0,98535.0,0.12550365]
[1739259067950,0.15889697,98536.0,98535.0,0.12561025]
[1739259068764,0.15889697,98536.0,98535.0,0.10261025]
[1739259069172,0.00666897,98536.0,98535.0,0.10261025]
[1739259069916,0.15889697,98536.0,98535.0,0.10261025]
[1739259073599,0.15889697,98536.0,98535.0,0.0001066]
[1739259075184,0.38569697,98536.0,98535.0,0.0001066]
[1739259076242,0.38969697,98536.0,98535.0,0.0011066]
[1739259076442,0.39269697,98536.0,98535.0,0.0011066]
[1739259076646,0.152231,98534.0,98533.0,0.0001066]
[1739259077203,0.15689032,98534.0,98533.0,0.0001066]
[1739259078443,0.16389032,98534.0,98533.0,0.0001066]
[1739259091656,0.29279032,98534.0,98533.0,0.0001066]
[1739259092067,0.29279032,98534.0,98533.0,6.6e-06]
[1739259092272,0.28779032,98534.0,98533.0,6.6e-06]
[1739259092650,0.00048598,98533.0,98531.0,0.0001066]
[1739259092868,0.152234,98532.0,98531.0,0.0001066]
[1739259093071,0.156839,98532.0,98531.0,0.0001066]
[1739259094285,0.156839,98532.0,98531.0,0.0011066]
[1739259094690,0.156839,98532.0,98531.0,0.0001066]
[1739259095056,0.178839,98532.0,98531.0,0.0021066]
[1739259096675,0.18884875,98532.0,98531.0,0.0021066]
[1739259098106,0.2088039,98532.0,98531.0,0.0021066]
[1739259098483,0.18884875,98532.0,98531.0,0.0021066]
[1739259103093,0.18424375,98532.0,98531.0,0.0021066]
[1739259106913,0.022,98532.0,98531.0,0.0021066]
[1739259107743,0.007,98532.0,98531.0,0.0011066]
[1739259107916,0.00022387,98534.0,98531.0,0.0001066]
[1739259108137,0.022,98532.0,98531.0,0.0021066]
[1739259108342,0.015,98532.0,98531.0,0.00062062]
[1739259108469,0.00022387,98534.0,98529.0,0.0454]
[1739259108669,0.002,98532.0,98529.0,0.0454]
[1739259109946,0.007,98532.0,98529.0,0.0454]
[1739259110303,0.00022387,98534.0,98529.0,0.0454]
[1739259110517,0.005,98532.0,98529.0,0.0454]
[1739259110716,0.007,98532.0,98529.0,0.0454]
[1739259111161,0.002,98532.0,98529.0,0.0454]
[1739259111367,0.004,98532.0,98529.0,0.0464]
[1739259112879,0.004,98532.0,98529.0,0.0454]
[1739259113098,0.008,98532.0,98529.0,0.0454]
[1739259114830,0.008,98532.0,98523.0,0.0784]
[1739259115035,0.008,98532.0,98526.0,0.10250365]
[1739259116392,0.004,98532.0,98526.0,0.10250365]
[1739259117167,0.002,98532.0,98526.0,0.10250365]
[1739259117570,0.006,98532.0,98526.0,0.10250365]
[1739259118122,0.006,98532.0,98529.0,0.0001066]
[1739259119451,0.002,98532.0,98529.0,0.0001066]
[1739259119674,0.006,98532.0,98529.0,0.0001066]
[1739259120955,0.004,98532.0,98529.0,0.0001066]
[1739259121159,0.006,98532.0,98529.0,0.08879853]
[1739259121385,0.006,98532.0,98530.0,0.10250365]
[1739259122563,0.002,98532.0,98530.0,0.10250365]
[1739259122773,0.006,98532.0,98530.0,0.10250365]
[1739259123367,0.002,98532.0,98530.0,0.10250365]
[1739259123508,0.00022387,98534.0,98530.0,0.10450365]
[1739259123715,0.002,98532.0,98530.0,0.10450365]
[1739259124124,0.002,98532.0,98530.0,0.10250365]
[1739259124320,0.002,98532.0,98530.0,0.10350365]
[1739259124522,0.002,98532.0,98530.0,0.10650365]
[1739259127106,0.002,98532.0,98531.0,0.01897891]
[1739259127307,0.002,98532.0,98531.0,0.12148256]
[1739259128164,0.00022387,98534.0,98531.0,0.12148256]
[1739259128361,0.00022387,98534.0,98532.0,0.10250365]
[1739259130456,0.00022387,98534.0,98532.0,0.10350365]
[1739259133087,0.00022387,98534.0,98532.0,0.10250365]
[1739259133288,0.00022387,98534.0,98533.0,0.01898883]
[1739259133418,0.00022387,98534.0,98533.0,0.12149248]
[1739259134050,0.00022387,98534.0,98533.0,0.18100781]
[1739259135287,0.00022387,98534.0,98533.0,0.18200781]
[1739259137630,0.00022387,98534.0,98533.0,0.12249248]
[1739259153313,0.0001628,98534.0,98533.0,0.12249248]
[1739259156537,0.0001628,98534.0,98533.0,0.4227403]
[1739259156913,0.0001628,98534.0,98533.0,0.42172548]
[1739259157320,0.0001628,98534.0,98533.0,0.26949248]
[1739259157523,0.0001628,98534.0,98533.0,0.27710145]
[1739259157713,0.0001628,98534.0,98533.0,0.15310145]
[1739259158469,0.0001628,98534.0,98533.0,0.22076654]
[1739259158670,0.0001628,98534.0,98533.0,0.13010145]
[1739259159882,0.0001628,98534.0,98533.0,0.0275978]
[1739259161479,0.0001628,98534.0,98533.0,0.01998883]
[1739259164190,0.0001628,98534.0,98533.0,0.01898883]
[1739259164326,0.0011628,98534.0,98533.0,0.01898883]
[1739259164526,0.0031628,98534.0,98533.0,0.01898883]
[1739259164985,0.0011628,98534.0,98533.0,0.01898883]
[1739259165164,0.0001628,98534.0,98533.0,0.01898883]
[1739259166657,0.0021628,98534.0,98533.0,0.01898883]
[1739259166865,0.0001628,98534.0,98533.0,0.01898883]
[1739259167063,0.0021628,98534.0,98533.0,0.01898883]
[1739259167263,0.0031628,98534.0,98533.0,0.01898883]
[1739259167468,0.0011628,98534.0,98533.0,0.01898883]
[1739259167869,0.0021628,98534.0,98533.0,0.01898883]
[1739259168077,0.0031628,98534.0,98533.0,0.01898883]
[1739259168407,0.0021628,98534.0,98533.0,0.01898883]
[1739259168807,0.0041628,98534.0,98533.0,0.01898883]
[1739259179430,0.0041628,98534.0,98533.0,0.01909543]
[1739259180051,0.0041628,98534.0,98533.0,0.12159908]
[1739259180261,0.0041628,98534.0,98533.0,0.13379097]
[1739259180601,0.0021628,98534.0,98533.0,0.13379097]
[1739259181230,0.0001628,98534.0,98533.0,0.13379097]
[1739259182804,0.0001628,98534.0,98533.0,0.13479097]
[1739259185286,0.0001628,98534.0,98533.0,0.12259908]
[1739259185739,0.0001628,98534.0,98533.0,0.02009543]
[1739259186345,0.0001628,98534.0,98533.0,0.01909543]
[1739259186752,0.0031628,98534.0,98533.0,0.01909543]
[1739259186888,0.1573938,98534.0,98533.0,0.01909543]
[1739259187287,0.1573938,98534.0,98533.0,0.0001066]
[1739259187498,0.1593938,98534.0,98533.0,0.0001066]
[1739259187711,0.1563938,98534.0,98533.0,0.0001066]
[1739259187910,0.1523938,98534.0,98533.0,0.0001066]
[1739259188115,0.1543938,98534.0,98533.0,0.0001066]
[1739259188416,0.0021628,98534.0,98533.0,0.0001066]
[1739259189041,0.0071628,98534.0,98533.0,0.0011066]
[1739259189622,0.0021628,98534.0,98533.0,0.0001066]
[1739259189857,0.0051628,98534.0,98533.0,0.0001066]
[1739259190593,0.1573938,98534.0,98533.0,0.0001066]
[1739259190797,0.0051628,98534.0,98533.0,0.0001066]
[1739259195424,0.0051628,98534.0,98533.0,0.10261025]
[1739259195782,0.0021628,98534.0,98533.0,0.10261025]
[1739259196006,0.0001628,98534.0,98533.0,0.10261025]
[1739259196241,0.0011628,98534.0,98533.0,0.10261025]
[1739259196430,0.0021628,98534.0,98533.0,0.10261025]
[1739259198024,0.0021628,98534.0,98533.0,0.14842616]
[1739259198218,0.0011628,98534.0,98533.0,0.14842616]
[1739259198692,0.0021628,98534.0,98533.0,0.14842616]
[1739259199015,0.0011628,98534.0,98533.0,0.30065916]
[1739259199210,0.0021628,98534.0,98533.0,0.30065916]
[1739259199796,0.0011628,98534.0,98533.0,0.31968533]
[1739259200208,0.0001628,98534.0,98533.0,0.31968533]
[1739259200623,0.0001628,98534.0,98533.0,0.16745233]
[1739259200819,0.0001628,98534.0,98533.0,0.12163642]
[1739259202416,0.0001628,98534.0,98533.0,0.27386942]
[1739259202748,0.0001628,98534.0,98533.0,0.12163642]
[1739259207273,0.0001628,98534.0,98533.0,0.10261025]
[1739259211094,0.0011628,98534.0,98533.0,0.10261025]
[1739259212062,0.0021628,98534.0,98533.0,0.10261025]
[1739259214143,0.0021628,98534.0,98533.0,0.0001066]
[1739259214285,0.2835938,98534.0,98533.0,0.0001066]
[1739259214487,0.2835938,98534.0,98478.0,0.0783]
[1739259214488,0.383467,98511.0,98478.0,0.0783]
[1739259214717,0.383467,98511.0,98481.0,0.3202066]
[1739259214718,0.281467,98511.0,98481.0,0.3202066]
[1739259214915,0.281467,98511.0,98510.0,0.09103879]
[1739259216221,0.281467,98511.0,98510.0,0.09203879]
[1739259218033,0.281467,98511.0,98510.0,0.00104412]
[1739259218801,0.281467,98511.0,98510.0,4.412e-05]
[1739259219009,0.45973511,98511.0,98510.0,0.00104412]
[1739259219353,0.46273511,98511.0,98510.0,0.00104412]
[1739259220983,0.39297065,98511.0,98510.0,0.00104412]
[1739259222655,0.55297065,98511.0,98510.0,0.00104412]
[1739259228511,0.55297065,98511.0,98510.0,0.00115072]
[1739259232569,0.54297065,98511.0,98510.0,0.00115072]
[1739259232773,0.440467,98511.0,98510.0,0.00115072]
[1739259235293,0.311267,98511.0,98510.0,0.00115072]
[1739259242079,0.161267,98511.0,98510.0,0.00115072]
[1739259244003,0.21260294,98511.0,98510.0,0.00115072]
[1739259244225,0.161267,98511.0,98510.0,0.00115072]
[1739259270832,0.161167,98511.0,98510.0,0.00115072]
[1739259276101,0.16139087,98511.0,98510.0,0.00115072]
[1739259296853,0.00922387,98511.0,98493.0,0.31196847]
[1739259297021,0.152283,98501.0,98493.0,0.31196847]
[1739259298345,0.152283,98501.0,98493.0,0.31296847]
[1739259298552,0.00526796,98511.0,98494.0,0.01905623]
[1739259298760,0.152282,98502.0,98494.0,0.01905623]
[1739259299762,0.00226796,98511.0,98496.0,0.0803]
[1739259299963,0.00226796,98511.0,98501.0,0.1296]
[1739259300169,0.00026796,98511.0,98502.0,0.152281]
[1739259300388,0.00026796,98511.0,98502.0,0.31196847]
[1739259300641,0.00026796,98511.0,98503.0,0.0803]
[1739259301042,0.00026796,98511.0,98502.0,0.31196847]
[1739259301043,0.00026796,98511.0,98505.0,0.152276]
[1739259301414,0.00026796,98511.0,98510.0,0.0803]
[1739259301620,0.00026796,98511.0,98510.0,0.18381865]
[1739259302215,0.00326796,98511.0,98510.0,0.18381865]
[1739259302424,0.01126796,98511.0,98510.0,0.18381865]
[1739259302679,0.01126796,98511.0,98510.0,0.18280365]
[1739259302886,0.00326796,98511.0,98510.0,0.21059738]
[1739259303102,0.00326796,98511.0,98510.0,0.21459738]
[1739259303310,0.00426796,98511.0,98510.0,0.26513393]
[1739259303494,0.00126796,98511.0,98510.0,0.26413393]
[1739259303727,0.00026796,98511.0,98510.0,0.2323402]
[1739259303929,0.00126796,98511.0,98510.0,0.2393402]
[1739259305892,0.00026796,98511.0,98510.0,0.2343402]
[1739259306096,0.00126796,98511.0,98510.0,0.2363402]
[1739259306631,0.00126796,98511.0,98510.0,0.2383402]
[1739259307086,0.00126796,98511.0,98510.0,0.55030867]
[1739259307526,0.00126796,98511.0,98510.0,0.47000867]
[1739259308047,0.00126796,98511.0,98510.0,0.43952835]
[1739259308248,0.00126796,98511.0,98510.0,0.3370247]
[1739259312912,0.00126796,98511.0,98510.0,0.006]
[1739259314292,0.15353496,98511.0,98510.0,0.006]
[1739259329654,0.00126796,98511.0,98510.0,0.006]
[1739259330080,0.15353496,98511.0,98510.0,0.006]
[1739259350686,0.15353496,98511.0,98510.0,0.02505245]
[1739259352298,0.00126796,98511.0,98510.0,0.02505245]
[1739259354179,0.15353496,98511.0,98510.0,0.02505245]
[1739259356006,0.00126796,98511.0,98510.0,0.02505245]
[1739259359025,0.15353496,98511.0,98510.0,0.02505245]
[1739259360590,0.00126796,98511.0,98510.0,0.02505245]
[1739259366946,0.00126796,98511.0,98510.0,0.0322977]
[1739259367547,0.00126796,98511.0,98510.0,0.02505245]
[1739259372949,0.00126796,98511.0,98510.0,0.006]
[1739259376339,0.00026796,98511.0,98501.0,0.31196847]
[1739259376664,0.152275,98506.0,98501.0,0.31196847]
[1739259377278,0.152274,98507.0,98501.0,0.31196847]
[1739259377485,0.152275,98506.0,98501.0,0.31196847]
[1739259378420,0.152275,98506.0,98501.0,0.31296847]
[1739259378642,0.01022729,98511.0,98501.0,0.31296847]
[1739259378857,0.15227,98509.0,98501.0,0.31296847]
[1739259379082,0.0754,98510.0,98501.0,0.31296847]
[1739259379083,0.152278,98505.0,98501.0,0.31296847]
[1739259379319,0.152278,98504.0,98501.0,0.31296847]
[1739259379666,0.152278,98504.0,98501.0,0.31196847]
[1739259380371,0.0754,98510.0,98501.0,0.31196847]
[1739259380578,0.002,98504.0,98501.0,0.31196847]
[1739259380782,0.007,98504.0,98501.0,0.31296847]
[1739259380939,0.005,98504.0,98501.0,0.31296847]
[1739259381143,0.002,98504.0,98501.0,0.31196847]
[1739259381514,0.002,98504.0,98501.0,0.31296847]
[1739259382737,0.152276,98505.0,98501.0,0.31296847]
[1739259382944,0.002,98504.0,98501.0,0.31296847]
[1739259383155,0.15228,98503.0,98501.0,0.31296847]
[1739259383362,0.002,98504.0,98501.0,0.31196847]
[1739259383590,0.156278,98504.0,98501.0,0.31196847]
[1739259383792,0.005,98504.0,98501.0,0.31296847]
[1739259383993,0.152279,98503.0,98501.0,0.31296847]
[1739259384206,0.152279,98503.0,98494.0,0.31207507]
[1739259384379,0.205038,98504.0,98494.0,0.31207507]
[1739259384588,0.152279,98503.0,98501.0,0.001]
[1739259384944,0.210038,98504.0,98494.0,0.31207507]
[1739259384945,0.152287,98498.0,98494.0,0.31207507]
[1739259385772,0.152285,98500.0,98494.0,0.31207507]
[1739259386515,0.152287,98499.0,98494.0,0.31207507]
[1739259386870,0.152287,98499.0,98494.0,0.31307507]
[1739259387275,0.152287,98499.0,98494.0,0.31207507]
[1739259390045,0.203043,98501.0,98494.0,0.31207507]
[1739259390282,0.152284,98500.0,98494.0,0.31207507]
[1739259390661,0.001,98499.0,98494.0,0.31207507]
[1739259390868,0.152284,98500.0,98494.0,0.31207507]
[1739259391076,0.002,98499.0,98494.0,0.31207507]
[1739259391706,0.152284,98500.0,98494.0,0.31207507]
[1739259391881,0.203049,98498.0,98494.0,0.31207507]
[1739259392117,0.003,98499.0,98494.0,0.31207507]
[1739259392311,0.152291,98496.0,98494.0,0.31207507]
[1739259393025,0.152288,98497.0,98494.0,0.31207507]
[1739259393485,0.203049,98498.0,98494.0,0.31207507]
[1739259394124,0.152291,98495.0,98494.0,0.31207507]
[1739259396206,0.152291,98495.0,98494.0,0.0001066]
[1739259397145,0.152291,98495.0,98494.0,0.0011066]
[1739259397541,0.152291,98495.0,98494.0,0.0001066]
[1739259398188,0.202091,98495.0,98494.0,0.0001066]
[1739259398450,0.429191,98495.0,98494.0,0.0001066]
[1739259401822,0.53169465,98495.0,98494.0,0.0001066]
[1739259416295,0.302291,98495.0,98494.0,0.0001066]
[1739259418670,0.30251487,98495.0,98494.0,0.0001066]
[1739259447951,0.15251487,98495.0,98494.0,0.0001066]
[1739259452199,0.00022387,98495.0,98494.0,0.0001066]
[1739259452616,0.15251487,98495.0,98494.0,0.0001066]
[1739259471977,0.00022387,98495.0,98494.0,0.0001066]
[1739259472729,0.15251487,98495.0,98494.0,0.0001066]
[1739259476617,0.00022387,98495.0,98494.0,0.0001066]
[1739259476819,0.15251487,98495.0,98494.0,0.0001066]
[1739259480571,0.00022387,98495.0,98494.0,0.0001066]
[1739259487916,0.15251487,98495.0,98494.0,0.0001066]
[1739259488123,0.00022387,98495.0,98494.0,0.0001066]
[1739259500884,0.15251487,98495.0,98494.0,0.0001066]
[1739259502803,0.00022387,98495.0,98494.0,0.0001066]
[1739259503891,0.15251487,98495.0,98494.0,0.0001066]
[1739259510052,0.23101487,98495.0,98494.0,0.0001066]
[1739259510693,0.38101487,98495.0,98494.0,0.0001066]
[1739259511050,0.42811487,98495.0,98494.0,0.0001066]
[1739259513578,0.43760973,98495.0,98494.0,0.0001066]
[1739259513986,0.45659913,98495.0,98494.0,0.0001066]
[1739259515207,0.46699719,98495.0,98494.0,0.0001066]
[1739259517428,0.45750233,98495.0,98494.0,0.0001066]
[1739259520359,0.46698736,98495.0,98494.0,0.0001066]
[1739259521184,0.49733723,98495.0,98494.0,0.0001066]
[1739259530438,0.37173723,98495.0,98494.0,0.0001066]
[1739259530983,0.32239796,98495.0,98494.0,0.0001066]
[1739259545264,0.31291293,98495.0,98494.0,0.0001066]
[1739259548813,0.30251487,98495.0,98494.0,0.0001066]
[1739259549024,0.15251487,98495.0,98494.0,0.0001066]
[1739259566926,0.00022387,98495.0,98494.0,0.0001066]
[1739259567925,0.15251487,98495.0,98494.0,0.0001066]
[1739259568163,0.00022387,98495.0,98494.0,0.0001066]
[1739259569946,0.00322387,98495.0,98494.0,0.0001066]
[1739259570954,0.00322387,98495.0,98494.0,0.00815792]
[1739259571186,0.00322387,98495.0,98494.0,0.0001066]
[1739259572770,0.00022387,98495.0,98494.0,0.12662547]
[1739259572973,0.00322387,98495.0,98494.0,0.48539394]
[1739259573202,0.00322387,98495.0,98494.0,0.58688237]
[1739259573615,0.00622387,98495.0,98494.0,0.58688237]
[1739259573798,0.00622387,98495.0,98494.0,0.73917537]
[1739259573943,0.00022387,98495.0,98494.0,0.73917537]
[1739259574148,0.00122387,98495.0,98494.0,0.58688237]